[Event "*** Titled Tuesday Blitz"]
[Site "Chess.com"]
[Date "2021.03.09"]
[Round "3"]
[White "lachesisQ"]
[Black "DanielDardha2005"]
[Result "1-0"]
[WhiteElo "3084"]
[BlackElo "2677"]
[TimeControl "180+1"]
[EndTime "10:30:18 PST"]
[Termination "lachesisQ won by resignation"]

1. e4 {[%clk 0:02:57.1]} 1... c5 {[%clk 0:03:00.1]} 2. Nf3 {[%clk 0:02:56.9]}
2... Nc6 {[%clk 0:03:00.3]} 3. d4 {[%clk 0:02:57.5]} 3... cxd4 {[%clk
0:03:01.2]} 4. Nxd4 {[%clk 0:02:58.2]} 4... e5 {[%clk 0:03:01.5]} 5. Nb3 {[%clk
0:02:57.6]} 5... Nf6 {[%clk 0:03:01]} 6. Bg5 {[%clk 0:02:57.3]} 6... h6 {[%clk
0:03:00.2]} 7. Bxf6 {[%clk 0:02:55.8]} 7... Qxf6 {[%clk 0:03:01.1]} 8. Bc4
{[%clk 0:02:56.1]} 8... Bb4+ {[%clk 0:02:58.1]} 9. c3 {[%clk 0:02:55.7]} 9...
Be7 {[%clk 0:02:57.2]} 10. Qd3 {[%clk 0:02:54.5]} 10... d6 {[%clk 0:02:51.4]}
11. N1d2 {[%clk 0:02:55]} 11... Be6 {[%clk 0:02:51.3]} 12. Nf1 {[%clk
0:02:53.8]} 12... Bxc4 {[%clk 0:02:30.4]} 13. Qxc4 {[%clk 0:02:54.7]} 13... Qe6
{[%clk 0:02:25.7]} 14. Qd3 {[%clk 0:02:52.7]} 14... Bg5 {[%clk 0:02:10.5]} 15.
h4 {[%clk 0:02:52]} 15... Bd8 {[%clk 0:02:02.3]} 16. Ne3 {[%clk 0:02:51.8]}
16... Bb6 {[%clk 0:02:02]} 17. Nd5 {[%clk 0:02:50.8]} 17... Ne7 {[%clk
0:01:58.4]} 18. Nxb6 {[%clk 0:02:45]} 18... axb6 {[%clk 0:01:59.3]} 19. Qb5+
{[%clk 0:02:45.3]} 19... Nc6 {[%clk 0:01:53.2]} 20. Qxb6 {[%clk 0:02:44.7]}
20... Qg4 {[%clk 0:01:53.4]} 21. Qe3 {[%clk 0:02:34.1]} 21... Qxg2 {[%clk
0:01:34.8]} 22. O-O-O {[%clk 0:02:33.1]} 22... Qg6 {[%clk 0:01:34.5]} 23. a3
{[%clk 0:02:30.3]} 23... Qe6 {[%clk 0:01:31.8]} 24. Rd5 {[%clk 0:02:25.7]} 24...
Ne7 {[%clk 0:01:26.2]} 25. Rb5 {[%clk 0:02:25.5]} 25... O-O {[%clk 0:01:23.7]}
26. Rd1 {[%clk 0:02:23.9]} 26... Rab8 {[%clk 0:01:05.9]} 27. h5 {[%clk
0:02:20.7]} 27... Rfd8 {[%clk 0:01:04.8]} 28. f3 {[%clk 0:02:17.1]} 28... d5
{[%clk 0:00:54.6]} 29. Rb6 {[%clk 0:02:06]} 29... Qc8 {[%clk 0:00:43.6]} 30. Rg1
{[%clk 0:02:01.4]} 30... Kf8 {[%clk 0:00:33.7]} 31. Rxg7 {[%clk 0:01:59.9]}
31... Kxg7 {[%clk 0:00:25.9]} 32. Qxh6+ {[%clk 0:01:58]} 32... Kg8 {[%clk
0:00:26.1]} 33. Qg5+ {[%clk 0:01:53.3]} 33... Kf8 {[%clk 0:00:26]} 34. Rh6
{[%clk 0:01:54]} 34... Ke8 {[%clk 0:00:20.2]} 35. Qxe5 {[%clk 0:01:53.8]} 35...
Qh3 {[%clk 0:00:15.5]} 36. Nd4 {[%clk 0:01:38.2]} 36... Qf1+ {[%clk 0:00:13.8]}
37. Kc2 {[%clk 0:01:38]} 37... dxe4 {[%clk 0:00:07.9]} 38. Qxe4 {[%clk
0:01:21.4]} 38... Kd7 {[%clk 0:00:05.6]} 39. Qg4+ {[%clk 0:01:04.8]} 39... f5
{[%clk 0:00:05.4]} 40. Qf4 {[%clk 0:01:00.4]} 40... Qg2+ {[%clk 0:00:04.6]} 41.
Kb3 {[%clk 0:00:55]} 41... Qg8+ {[%clk 0:00:04.5]} 42. c4 {[%clk 0:00:55.4]}
42... Rbc8 {[%clk 0:00:03.8]} 43. Nb5 {[%clk 0:00:47.9]} 43... Rc6 {[%clk
0:00:04]} 44. Rxc6 {[%clk 0:00:33.8]} 44... bxc6 {[%clk 0:00:04.9]} 45. Qc7+
{[%clk 0:00:34]} 45... Ke8 {[%clk 0:00:05.3]} 46. Nd6+ {[%clk 0:00:34.3]} 46...
Rxd6 {[%clk 0:00:05.1]} 47. Qxd6 {[%clk 0:00:35.2]} 47... Qg2 {[%clk 0:00:04.1]}
48. h6 {[%clk 0:00:31.5]} 48... Qxf3+ {[%clk 0:00:04.1]} 49. Ka2 {[%clk
0:00:32.2]} 49... Qh5 {[%clk 0:00:03.3]} 50. a4 {[%clk 0:00:30.9]} 50... Kf7
{[%clk 0:00:03.2]} 51. a5 {[%clk 0:00:29.6]} 51... Qg6 {[%clk 0:00:03.6]} 52. c5
{[%clk 0:00:27.1]} 52... Nd5 {[%clk 0:00:02.2]} 53. Qd7+ {[%clk 0:00:22.9]}
53... Kg8 {[%clk 0:00:02.1]} 54. a6 {[%clk 0:00:21.7]} 54... Nb4+ {[%clk
0:00:02.2]} 55. Ka3 {[%clk 0:00:21.1]} 55... Nxa6 {[%clk 0:00:02.3]} 56. Qc8+
{[%clk 0:00:21.9]} 56... Kh7 {[%clk 0:00:03]} 57. Qxa6 {[%clk 0:00:22.8]} 57...
Kxh6 {[%clk 0:00:03.9]} 58. Qc4 {[%clk 0:00:21.1]} 58... Kg5 {[%clk 0:00:03.7]}
59. b4 {[%clk 0:00:19.8]} 59... f4 {[%clk 0:00:04.2]} 60. b5 {[%clk 0:00:19.8]}
60... cxb5 {[%clk 0:00:05.1]} 61. Qxb5 {[%clk 0:00:20.6]} 61... f3 {[%clk
0:00:04.8]} 62. c6+ {[%clk 0:00:20.9]} 62... Kf4 {[%clk 0:00:05.2]} 63. c7
{[%clk 0:00:19.8]} 63... Qd6+ {[%clk 0:00:05.1]} 64. Qb4+ {[%clk 0:00:20.5]}
64... Qxb4+ {[%clk 0:00:05.5]} 65. Kxb4 {[%clk 0:00:21.4]} 65... f2 {[%clk
0:00:06.2]} 66. c8=Q {[%clk 0:00:21.6]} 66... f1=Q {[%clk 0:00:06.3]} 67. Qf8+
{[%clk 0:00:21.7]} 1-0

[Event "*** Titled Tuesday Blitz"]
[Site "Chess.com"]
[Date "2021.03.09"]
[Round "3"]
[White "SimplyDevina"]
[Black "noblerone"]
[Result "1/2-1/2"]
[WhiteElo "2190"]
[BlackElo "2393"]
[TimeControl "180+1"]
[EndTime "10:30:19 PST"]
[Termination "Game drawn - insufficient material"]

1. d4 {[%clk 0:03:00.9]} 1... d5 {[%clk 0:02:59.6]} 2. c4 {[%clk 0:02:58.1]}
2... c6 {[%clk 0:02:59.9]} 3. Nc3 {[%clk 0:02:57]} 3... Nf6 {[%clk 0:02:59.2]}
4. e3 {[%clk 0:02:54]} 4... a6 {[%clk 0:02:57.7]} 5. Nf3 {[%clk 0:02:14.9]} 5...
b5 {[%clk 0:02:54.5]} 6. cxd5 {[%clk 0:02:09.2]} 6... cxd5 {[%clk 0:02:54.4]} 7.
Bd3 {[%clk 0:02:06]} 7... Bg4 {[%clk 0:02:53.5]} 8. h3 {[%clk 0:02:04.8]} 8...
Bh5 {[%clk 0:02:40.9]} 9. g4 {[%clk 0:01:51.8]} 9... Bg6 {[%clk 0:02:40.1]} 10.
Ne5 {[%clk 0:01:50.7]} 10... Bxd3 {[%clk 0:02:14.5]} 11. Qxd3 {[%clk 0:01:46.8]}
11... e6 {[%clk 0:02:13.1]} 12. g5 {[%clk 0:01:21.7]} 12... Nfd7 {[%clk
0:02:09.7]} 13. Nf3 {[%clk 0:01:22]} 13... Nc6 {[%clk 0:02:02.2]} 14. e4 {[%clk
0:01:06.8]} 14... Nb4 {[%clk 0:01:50.1]} 15. Qb1 {[%clk 0:01:00]} 15... Be7
{[%clk 0:01:40.9]} 16. a3 {[%clk 0:00:56.4]} 16... dxe4 {[%clk 0:01:15.7]} 17.
Qxe4 {[%clk 0:00:51.6]} 17... Nd5 {[%clk 0:01:14.8]} 18. Nxd5 {[%clk 0:00:49.8]}
18... exd5 {[%clk 0:01:15.7]} 19. Qxd5 {[%clk 0:00:46.7]} 19... O-O {[%clk
0:01:15.7]} 20. O-O {[%clk 0:00:43.8]} 20... Nb6 {[%clk 0:00:41.7]} 21. Qxd8
{[%clk 0:00:43.5]} 21... Raxd8 {[%clk 0:00:42.6]} 22. Be3 {[%clk 0:00:42]} 22...
Nc4 {[%clk 0:00:38.5]} 23. b3 {[%clk 0:00:40.5]} 23... Nxa3 {[%clk 0:00:35]} 24.
Ne5 {[%clk 0:00:36.2]} 24... Bd6 {[%clk 0:00:29.7]} 25. Nc6 {[%clk 0:00:29.7]}
25... Rc8 {[%clk 0:00:22.9]} 26. d5 {[%clk 0:00:30.2]} 26... b4 {[%clk
0:00:20.5]} 27. Rfc1 {[%clk 0:00:20.5]} 27... Rfe8 {[%clk 0:00:20.2]} 28. Kg2
{[%clk 0:00:18.9]} 28... g6 {[%clk 0:00:19.1]} 29. Kf3 {[%clk 0:00:15]} 29...
Kg7 {[%clk 0:00:16.8]} 30. Bd4+ {[%clk 0:00:15.1]} 30... Kg8 {[%clk 0:00:17.3]}
31. Bb2 {[%clk 0:00:11.9]} 31... Kf8 {[%clk 0:00:13.4]} 32. Bf6 {[%clk
0:00:09.3]} 32... Kg8 {[%clk 0:00:12.7]} 33. Kg2 {[%clk 0:00:09.4]} 33... Bf8
{[%clk 0:00:11.6]} 34. h4 {[%clk 0:00:06.7]} 34... Bd6 {[%clk 0:00:11.7]} 35.
Kf3 {[%clk 0:00:05.5]} 35... a5 {[%clk 0:00:10.3]} 36. Ra2 {[%clk 0:00:05.6]}
36... Bf8 {[%clk 0:00:08.7]} 37. Kg2 {[%clk 0:00:04.6]} 37... Bd6 {[%clk
0:00:08.4]} 38. Kf3 {[%clk 0:00:05]} 38... Bf8 {[%clk 0:00:08]} 39. Kg2 {[%clk
0:00:03.8]} 39... Bg7 {[%clk 0:00:07.8]} 40. Bxg7 {[%clk 0:00:03]} 40... Kxg7
{[%clk 0:00:08.7]} 41. Kf3 {[%clk 0:00:03]} 41... Rf8 {[%clk 0:00:07]} 42. Re2
{[%clk 0:00:03.3]} 42... Rc7 {[%clk 0:00:06.3]} 43. Re7 {[%clk 0:00:03.3]} 43...
Rfc8 {[%clk 0:00:04.6]} 44. Rxc7 {[%clk 0:00:02.9]} 44... Rxc7 {[%clk
0:00:05.5]} 45. d6 {[%clk 0:00:03.6]} 45... Rd7 {[%clk 0:00:05.7]} 46. Rd1
{[%clk 0:00:03]} 46... Nb5 {[%clk 0:00:06.4]} 47. Nxa5 {[%clk 0:00:02.5]} 47...
Rxd6 {[%clk 0:00:06.6]} 48. Rxd6 {[%clk 0:00:03]} 48... Nxd6 {[%clk 0:00:07.5]}
49. Nc6 {[%clk 0:00:03.5]} 49... Nb5 {[%clk 0:00:07.1]} 50. Nxb4 {[%clk
0:00:03.7]} 50... Nd4+ {[%clk 0:00:07.8]} 51. Kg4 {[%clk 0:00:04.3]} 51... Nxb3
{[%clk 0:00:08.7]} 52. Nd5 {[%clk 0:00:04.5]} 52... Nc5 {[%clk 0:00:09.2]} 53.
f4 {[%clk 0:00:04.7]} 53... Nd3 {[%clk 0:00:09.6]} 54. Nf6 {[%clk 0:00:04.7]}
54... Nc5 {[%clk 0:00:09.3]} 55. f5 {[%clk 0:00:05.2]} 55... Nd7 {[%clk
0:00:08.7]} 56. fxg6 {[%clk 0:00:05.5]} 56... Ne5+ {[%clk 0:00:09]} 57. Kf5
{[%clk 0:00:04.6]} 57... Nxg6 {[%clk 0:00:09.9]} 58. Kg4 {[%clk 0:00:04.5]}
58... Ne5+ {[%clk 0:00:09.9]} 59. Kg3 {[%clk 0:00:05.1]} 59... Ng6 {[%clk
0:00:10.8]} 60. h5 {[%clk 0:00:05.4]} 60... Ne5 {[%clk 0:00:11.3]} 61. Kf4
{[%clk 0:00:05.3]} 61... Nd3+ {[%clk 0:00:11.5]} 62. Kf5 {[%clk 0:00:05]} 62...
Nc5 {[%clk 0:00:11.6]} 63. h6+ {[%clk 0:00:05.2]} 63... Kf8 {[%clk 0:00:12.1]}
64. Nxh7+ {[%clk 0:00:05]} 64... Kg8 {[%clk 0:00:12.8]} 65. Nf6+ {[%clk
0:00:05.9]} 65... Kh8 {[%clk 0:00:12.8]} 66. g6 {[%clk 0:00:05.9]} 66... fxg6+
{[%clk 0:00:13]} 67. Kxg6 {[%clk 0:00:06.8]} 67... Ne6 {[%clk 0:00:13.3]} 68. h7
{[%clk 0:00:04.6]} 68... Nf8+ {[%clk 0:00:13.7]} 69. Kh6 {[%clk 0:00:04.9]}
69... Nxh7 {[%clk 0:00:14.6]} 1/2-1/2

[Event "*** Titled Tuesday Blitz"]
[Site "Chess.com"]
[Date "2021.03.09"]
[Round "3"]
[White "TheCavemanChesss"]
[Black "Onischuk_V"]
[Result "0-1"]
[WhiteElo "2566"]
[BlackElo "2828"]
[TimeControl "180+1"]
[EndTime "10:30:23 PST"]
[Termination "Onischuk_V won by resignation"]

1. e4 {[%clk 0:03:00.9]} 1... d6 {[%clk 0:02:53.8]} 2. d4 {[%clk 0:03:00.6]}
2... Nf6 {[%clk 0:02:53.6]} 3. Nc3 {[%clk 0:03:01.3]} 3... g6 {[%clk 0:02:54]}
4. Bf4 {[%clk 0:03:01.1]} 4... c6 {[%clk 0:02:42.2]} 5. Qd2 {[%clk 0:03:01]}
5... Nbd7 {[%clk 0:02:35]} 6. O-O-O {[%clk 0:02:59.4]} 6... Nb6 {[%clk
0:02:28.1]} 7. Nf3 {[%clk 0:02:48.3]} 7... h6 {[%clk 0:02:26.6]} 8. e5 {[%clk
0:02:47.8]} 8... Nfd5 {[%clk 0:02:26]} 9. exd6 {[%clk 0:02:47]} 9... exd6 {[%clk
0:02:25.7]} 10. Ne4 {[%clk 0:02:34.5]} 10... Nxf4 {[%clk 0:02:22]} 11. Qxf4
{[%clk 0:02:34.4]} 11... Be7 {[%clk 0:02:22.6]} 12. Bd3 {[%clk 0:02:04.2]} 12...
g5 {[%clk 0:02:15.4]} 13. Qg3 {[%clk 0:01:39.1]} 13... f5 {[%clk 0:02:12.3]} 14.
h4 {[%clk 0:01:25.9]} 14... fxe4 {[%clk 0:02:10.4]} 15. Bxe4 {[%clk 0:01:23.1]}
15... gxh4 {[%clk 0:02:02.1]} 16. Qg7 {[%clk 0:01:20.8]} 16... Kd7 {[%clk
0:01:55]} 17. Rhe1 {[%clk 0:01:16.8]} 17... Qf8 {[%clk 0:01:53.5]} 18. Bxc6+
{[%clk 0:00:25.2]} 18... bxc6 {[%clk 0:01:35.7]} 19. Rxe7+ {[%clk 0:00:25.2]}
19... Qxe7 {[%clk 0:01:34.7]} 20. Qxh8 {[%clk 0:00:25.6]} 20... Ba6 {[%clk
0:00:53]} 21. Qxh6 {[%clk 0:00:25.4]} 21... Rg8 {[%clk 0:00:52.8]} 22. Re1
{[%clk 0:00:23.2]} 22... Qf7 {[%clk 0:00:46.7]} 23. Nxh4 {[%clk 0:00:09.4]}
23... Nd5 {[%clk 0:00:45.8]} 24. b3 {[%clk 0:00:04]} 24... Qf4+ {[%clk
0:00:43.1]} 25. Qxf4 {[%clk 0:00:03.8]} 25... Nxf4 {[%clk 0:00:43.2]} 26. g3
{[%clk 0:00:04.7]} 26... Ne2+ {[%clk 0:00:43.1]} 27. Kd2 {[%clk 0:00:05.6]}
27... Nxd4 {[%clk 0:00:43.4]} 28. c3 {[%clk 0:00:06.5]} 28... Ne6 {[%clk
0:00:41.6]} 29. Rh1 {[%clk 0:00:07.1]} 29... Rh8 {[%clk 0:00:38.5]} 30. Re1
{[%clk 0:00:07.7]} 30... c5 {[%clk 0:00:34]} 31. Re3 {[%clk 0:00:07.8]} 31...
Bb7 {[%clk 0:00:33]} 32. c4 {[%clk 0:00:06.8]} 32... Rf8 {[%clk 0:00:30.4]} 33.
f4 {[%clk 0:00:06.7]} 33... Nd4 {[%clk 0:00:30]} 34. Kd3 {[%clk 0:00:06.7]}
34... Re8 {[%clk 0:00:29.4]} 35. g4 {[%clk 0:00:05.4]} 35... Rxe3+ {[%clk
0:00:27.6]} 36. Kxe3 {[%clk 0:00:06.3]} 36... Ke6 {[%clk 0:00:27.5]} 37. f5+
{[%clk 0:00:05.9]} 37... Kf6 {[%clk 0:00:27]} 38. Kf4 {[%clk 0:00:05.9]} 38...
Ne2+ {[%clk 0:00:27.1]} 39. Ke3 {[%clk 0:00:06.6]} 39... Nc1 {[%clk 0:00:25.2]}
40. Kf4 {[%clk 0:00:07.3]} 40... Nd3+ {[%clk 0:00:25.1]} 41. Ke3 {[%clk
0:00:07.5]} 41... Ne5 {[%clk 0:00:23]} 42. Kf4 {[%clk 0:00:08.4]} 42... Nf7
{[%clk 0:00:23.2]} 43. Ng6 {[%clk 0:00:07.2]} 43... a5 {[%clk 0:00:21.2]} 44.
Nf8 {[%clk 0:00:07.6]} 44... Bc8 {[%clk 0:00:19.9]} 45. Nh7+ {[%clk 0:00:07]}
45... Kg7 {[%clk 0:00:19.8]} 46. Ng5 {[%clk 0:00:07.5]} 46... Nxg5 {[%clk
0:00:19.9]} 47. Kxg5 {[%clk 0:00:08.4]} 47... Bd7 {[%clk 0:00:19.3]} 48. Kf4
{[%clk 0:00:08.8]} 48... a4 {[%clk 0:00:16.2]} 49. g5 {[%clk 0:00:07.8]} 49...
Bc6 {[%clk 0:00:13.8]} 50. Kg4 {[%clk 0:00:06.7]} 50... a3 {[%clk 0:00:12.8]}
51. Kf4 {[%clk 0:00:06.1]} 51... Bb7 {[%clk 0:00:13.2]} 52. Ke3 {[%clk
0:00:02.4]} 52... Kf7 {[%clk 0:00:13.4]} 53. Kf4 {[%clk 0:00:02.8]} 53... Bg2
{[%clk 0:00:13.3]} 54. Ke3 {[%clk 0:00:02.7]} 54... Bh1 {[%clk 0:00:10.3]} 55.
Kf4 {[%clk 0:00:02.8]} 55... Ke7 {[%clk 0:00:10.8]} 56. Ke3 {[%clk 0:00:02.5]}
56... Bg2 {[%clk 0:00:10.7]} 57. Kf4 {[%clk 0:00:02.8]} 57... Bh3 {[%clk
0:00:09.4]} 58. Ke4 {[%clk 0:00:02.4]} 58... Bg2+ {[%clk 0:00:08.9]} 59. Kf4
{[%clk 0:00:02.7]} 59... d5 {[%clk 0:00:08.2]} 60. cxd5 {[%clk 0:00:02.2]} 60...
Bxd5 {[%clk 0:00:07.8]} 61. Ke5 {[%clk 0:00:03.1]} 61... Bxb3 {[%clk 0:00:08]}
62. f6+ {[%clk 0:00:03.6]} 62... Kf7 {[%clk 0:00:07.9]} 63. Kf5 {[%clk 0:00:04]}
63... Bc2+ {[%clk 0:00:07.1]} 0-1

[Event "*** Titled Tuesday Blitz"]
[Site "Chess.com"]
[Date "2021.03.09"]
[Round "3"]
[White "boasovietica"]
[Black "Durarbayli"]
[Result "0-1"]
[WhiteElo "2439"]
[BlackElo "2680"]
[TimeControl "180+1"]
[EndTime "10:30:24 PST"]
[Termination "Durarbayli won on time"]

1. e4 {[%clk 0:03:00.9]} 1... c5 {[%clk 0:02:33.1]} 2. Nf3 {[%clk 0:03:00.4]}
2... d6 {[%clk 0:02:33.6]} 3. d4 {[%clk 0:02:59.7]} 3... cxd4 {[%clk 0:02:34.5]}
4. Nxd4 {[%clk 0:02:59.3]} 4... Nf6 {[%clk 0:02:35.1]} 5. Nc3 {[%clk 0:02:59.6]}
5... Nc6 {[%clk 0:02:35.8]} 6. Nb3 {[%clk 0:02:58.4]} 6... g6 {[%clk 0:02:34.8]}
7. Be2 {[%clk 0:02:55]} 7... Bg7 {[%clk 0:02:33.4]} 8. O-O {[%clk 0:02:55.5]}
8... O-O {[%clk 0:02:32.9]} 9. Bg5 {[%clk 0:02:56]} 9... a6 {[%clk 0:02:30.4]}
10. a4 {[%clk 0:02:43.6]} 10... Be6 {[%clk 0:02:18.8]} 11. Kh1 {[%clk
0:02:40.1]} 11... Rc8 {[%clk 0:02:16.7]} 12. f4 {[%clk 0:02:36.7]} 12... Na5
{[%clk 0:01:34.4]} 13. f5 {[%clk 0:02:08.7]} 13... Bc4 {[%clk 0:01:31.1]} 14.
Bd3 {[%clk 0:02:04.2]} 14... Re8 {[%clk 0:01:17.9]} 15. Nxa5 {[%clk 0:01:49]}
15... Qxa5 {[%clk 0:01:18.8]} 16. Qe2 {[%clk 0:01:35.2]} 16... Qb4 {[%clk
0:01:10.5]} 17. Rab1 {[%clk 0:01:32]} 17... Bxd3 {[%clk 0:00:58.4]} 18. cxd3
{[%clk 0:01:27]} 18... Qb3 {[%clk 0:00:58.3]} 19. Rbc1 {[%clk 0:01:22.9]} 19...
b5 {[%clk 0:00:48.5]} 20. axb5 {[%clk 0:01:12.9]} 20... axb5 {[%clk 0:00:49.4]}
21. Bxf6 {[%clk 0:01:03.1]} 21... Bxf6 {[%clk 0:00:45.8]} 22. Nd5 {[%clk
0:01:02.2]} 22... Rxc1 {[%clk 0:00:30.6]} 23. Nxf6+ {[%clk 0:00:59.7]} 23...
exf6 {[%clk 0:00:31.5]} 24. Rxc1 {[%clk 0:00:59.9]} 24... d5 {[%clk 0:00:25.8]}
25. h3 {[%clk 0:00:46.2]} 25... dxe4 {[%clk 0:00:23]} 26. dxe4 {[%clk
0:00:45.7]} 26... Qb4 {[%clk 0:00:22.2]} 27. fxg6 {[%clk 0:00:39.7]} 27... hxg6
{[%clk 0:00:21.3]} 28. Re1 {[%clk 0:00:38.6]} 28... Re5 {[%clk 0:00:21.1]} 29.
Qf1 {[%clk 0:00:17.4]} 29... Kg7 {[%clk 0:00:18.5]} 30. Re2 {[%clk 0:00:17]}
30... Qc4 {[%clk 0:00:14.5]} 31. Kg1 {[%clk 0:00:13.9]} 31... Qd4+ {[%clk
0:00:13.5]} 32. Kh1 {[%clk 0:00:09.9]} 32... Qc4 {[%clk 0:00:13.6]} 33. Kg1
{[%clk 0:00:07.5]} 33... b4 {[%clk 0:00:14.2]} 34. Qf3 {[%clk 0:00:05.8]} 34...
Qd4+ {[%clk 0:00:11.9]} 35. Qe3 {[%clk 0:00:03.9]} 35... Rxe4 {[%clk 0:00:09.7]}
36. Qxd4 {[%clk 0:00:04.4]} 36... Rxd4 {[%clk 0:00:10.6]} 37. Kf2 {[%clk
0:00:04.9]} 37... f5 {[%clk 0:00:10.8]} 38. Rc2 {[%clk 0:00:04.3]} 38... Kf6
{[%clk 0:00:10.6]} 39. Ke3 {[%clk 0:00:04.8]} 39... Re4+ {[%clk 0:00:11]} 40.
Kd3 {[%clk 0:00:05.3]} 40... Kg5 {[%clk 0:00:11.4]} 41. Rc4 {[%clk 0:00:05.1]}
41... Kf4 {[%clk 0:00:07.1]} 42. Rc7 {[%clk 0:00:03.8]} 42... f6 {[%clk
0:00:05.8]} 43. Rc6 {[%clk 0:00:04.3]} 43... Re3+ {[%clk 0:00:04]} 44. Kd2
{[%clk 0:00:04.2]} 44... Rb3 {[%clk 0:00:03.5]} 45. Kc2 {[%clk 0:00:04.3]} 45...
Rg3 {[%clk 0:00:03.9]} 46. Rc4+ {[%clk 0:00:04.3]} 46... Kg5 {[%clk 0:00:03.8]}
47. Rxb4 {[%clk 0:00:04.6]} 47... Rxg2+ {[%clk 0:00:04.4]} 48. Kb1 {[%clk
0:00:04.5]} 48... f4 {[%clk 0:00:04.2]} 49. Rd4 {[%clk 0:00:04.3]} 49... f5
{[%clk 0:00:04.7]} 50. b4 {[%clk 0:00:04.5]} 50... f3 {[%clk 0:00:05.2]} 51. h4+
{[%clk 0:00:03.9]} 51... Kh5 {[%clk 0:00:05.2]} 52. Rf4 {[%clk 0:00:04.3]} 52...
Rg4 {[%clk 0:00:04.8]} 53. Rxf3 {[%clk 0:00:04.3]} 53... Rxb4+ {[%clk
0:00:05.7]} 54. Kc2 {[%clk 0:00:03.9]} 54... Rxh4 {[%clk 0:00:06.6]} 55. Rg3
{[%clk 0:00:04.2]} 55... Rg4 {[%clk 0:00:07.5]} 56. Rh3+ {[%clk 0:00:04]} 56...
Kg5 {[%clk 0:00:08.4]} 57. Rh8 {[%clk 0:00:03.6]} 57... Re4 {[%clk 0:00:09.3]}
58. Kd3 {[%clk 0:00:04]} 58... Kf4 {[%clk 0:00:09.7]} 59. Rg8 {[%clk 0:00:04.2]}
59... g5 {[%clk 0:00:09.5]} 60. Rh8 {[%clk 0:00:03.2]} 60... g4 {[%clk
0:00:09.9]} 61. Rh1 {[%clk 0:00:02.9]} 61... Re3+ {[%clk 0:00:10.4]} 62. Kd2
{[%clk 0:00:03]} 62... Rf3 {[%clk 0:00:11.3]} 0-1

[Event "*** Titled Tuesday Blitz"]
[Site "Chess.com"]
[Date "2021.03.09"]
[Round "3"]
[White "kobemagic"]
[Black "elohunter1999"]
[Result "0-1"]
[WhiteElo "2426"]
[BlackElo "2642"]
[TimeControl "180+1"]
[EndTime "10:30:25 PST"]
[Termination "elohunter1999 won on time"]

1. c4 {[%clk 0:03:00.9]} 1... e5 {[%clk 0:02:58.6]} 2. g3 {[%clk 0:03:00.9]}
2... c6 {[%clk 0:02:56.1]} 3. d4 {[%clk 0:02:59.1]} 3... e4 {[%clk 0:02:33.8]}
4. Nc3 {[%clk 0:02:57]} 4... d5 {[%clk 0:02:32.1]} 5. Bg2 {[%clk 0:02:56.9]}
5... Nf6 {[%clk 0:02:25.6]} 6. Bg5 {[%clk 0:02:55.9]} 6... Bb4 {[%clk
0:02:22.1]} 7. f3 {[%clk 0:02:54.3]} 7... Nbd7 {[%clk 0:01:49.6]} 8. Nh3 {[%clk
0:02:50.1]} 8... exf3 {[%clk 0:01:45]} 9. exf3 {[%clk 0:02:47.5]} 9... O-O
{[%clk 0:01:43.1]} 10. O-O {[%clk 0:02:44.6]} 10... dxc4 {[%clk 0:01:42.8]} 11.
a3 {[%clk 0:02:32.4]} 11... Bxc3 {[%clk 0:01:38.7]} 12. bxc3 {[%clk 0:02:33.3]}
12... h6 {[%clk 0:01:39.3]} 13. Bf4 {[%clk 0:02:31.3]} 13... Nd5 {[%clk
0:01:38]} 14. Qd2 {[%clk 0:02:26.1]} 14... Nxf4 {[%clk 0:01:35]} 15. Nxf4 {[%clk
0:02:25.4]} 15... Nb6 {[%clk 0:01:35]} 16. Rfe1 {[%clk 0:02:19.4]} 16... Nd5
{[%clk 0:01:34.4]} 17. Nxd5 {[%clk 0:02:13.5]} 17... cxd5 {[%clk 0:01:30.5]} 18.
f4 {[%clk 0:02:14.4]} 18... b5 {[%clk 0:01:16]} 19. Re5 {[%clk 0:02:07.6]} 19...
Bb7 {[%clk 0:01:15.9]} 20. Rae1 {[%clk 0:02:04.1]} 20... Qd6 {[%clk 0:01:15.8]}
21. f5 {[%clk 0:01:56.3]} 21... Bc6 {[%clk 0:01:13.8]} 22. Qc1 {[%clk 0:01:47]}
22... Rfe8 {[%clk 0:01:11.7]} 23. Qf4 {[%clk 0:00:47.6]} 23... Rxe5 {[%clk
0:00:33.5]} 24. dxe5 {[%clk 0:00:48.5]} 24... Qxa3 {[%clk 0:00:27.6]} 25. e6
{[%clk 0:00:40.5]} 25... f6 {[%clk 0:00:19]} 26. Qc7 {[%clk 0:00:29.3]} 26...
Be8 {[%clk 0:00:14.9]} 27. Bxd5 {[%clk 0:00:24.1]} 27... Qxc3 {[%clk 0:00:15.1]}
28. Bxa8 {[%clk 0:00:16.4]} 28... Qxe1+ {[%clk 0:00:14.6]} 29. Kg2 {[%clk
0:00:17]} 29... Qe2+ {[%clk 0:00:11.4]} 30. Kg1 {[%clk 0:00:16.7]} 30... Qd1+
{[%clk 0:00:11.1]} 31. Kg2 {[%clk 0:00:16.1]} 31... Qc2+ {[%clk 0:00:11.3]} 32.
Kg1 {[%clk 0:00:14.8]} 32... Qxf5 {[%clk 0:00:11.3]} 33. e7 {[%clk 0:00:13.6]}
33... Qb1+ {[%clk 0:00:10.5]} 34. Kg2 {[%clk 0:00:13.4]} 34... Qc2+ {[%clk
0:00:10.3]} 35. Kg1 {[%clk 0:00:12.7]} 35... Qd1+ {[%clk 0:00:10.5]} 36. Kg2
{[%clk 0:00:13]} 36... Qe2+ {[%clk 0:00:09.6]} 37. Kg1 {[%clk 0:00:13.1]} 37...
Qd1+ {[%clk 0:00:09.4]} 38. Kg2 {[%clk 0:00:13.3]} 38... Qe2+ {[%clk 0:00:07.1]}
39. Kg1 {[%clk 0:00:13.6]} 39... Qe3+ {[%clk 0:00:07.4]} 40. Kg2 {[%clk
0:00:13.8]} 40... Qb6 {[%clk 0:00:06.8]} 41. Bd5+ {[%clk 0:00:12.4]} 41... Kh7
{[%clk 0:00:06.2]} 42. Be4+ {[%clk 0:00:11.7]} 42... f5 {[%clk 0:00:05.5]} 43.
Bxf5+ {[%clk 0:00:11.4]} 43... g6 {[%clk 0:00:06.1]} 44. Qxb6 {[%clk 0:00:06.4]}
44... axb6 {[%clk 0:00:06.3]} 45. Be6 {[%clk 0:00:05.3]} 45... Kg7 {[%clk
0:00:06.5]} 46. Kf3 {[%clk 0:00:04.6]} 46... Kf6 {[%clk 0:00:06.9]} 47. Bd5
{[%clk 0:00:03.9]} 47... Kxe7 {[%clk 0:00:07.5]} 48. Ke4 {[%clk 0:00:04.8]}
48... Kd6 {[%clk 0:00:07.8]} 49. Kd4 {[%clk 0:00:05]} 49... Bc6 {[%clk
0:00:07.9]} 50. Bf7 {[%clk 0:00:04.6]} 50... g5 {[%clk 0:00:06.9]} 51. h4 {[%clk
0:00:05.2]} 51... gxh4 {[%clk 0:00:06.9]} 52. gxh4 {[%clk 0:00:06.1]} 52... Ke7
{[%clk 0:00:07.2]} 53. Bg6 {[%clk 0:00:05.6]} 53... Kf6 {[%clk 0:00:07.5]} 54.
Bc2 {[%clk 0:00:04.4]} 54... Be8 {[%clk 0:00:07.4]} 55. Bd1 {[%clk 0:00:03.1]}
55... Bf7 {[%clk 0:00:07.8]} 56. Bf3 {[%clk 0:00:02.7]} 56... b4 {[%clk
0:00:08]} 57. Be2 {[%clk 0:00:01.9]} 57... c3 {[%clk 0:00:07.1]} 58. Kd3 {[%clk
0:00:02.4]} 58... b5 {[%clk 0:00:06.4]} 59. Bf3 {[%clk 0:00:02.4]} 59... Bc4+
{[%clk 0:00:05.3]} 60. Kc2 {[%clk 0:00:02.9]} 60... Kf5 {[%clk 0:00:05.7]} 0-1